[Event "Late-Titled-Tuesday-Blitz-October-10-2023"]
[Site "Chess.com"]
[Date "2023.10.10"]
[Round "5"]
[White "isainz"]
[Black "GAO"]
[Result "0-1"]
[WhiteElo "2022"]
[BlackElo "2353"]
[TimeControl "180+1"]
[EndTime "14:52:31 PDT"]
[Termination "GAO won on time"]

1. e4 {[%clk 0:03:00.9]} 1... c6 {[%clk 0:02:50]} 2. d4 {[%clk 0:02:59.7]} 2...
d5 {[%clk 0:02:50.9]} 3. e5 {[%clk 0:02:59.8]} 3... Bf5 {[%clk 0:02:49.6]} 4.
Be3 {[%clk 0:02:59.9]} 4... e6 {[%clk 0:02:49.8]} 5. Nd2 {[%clk 0:02:58.7]} 5...
Ne7 {[%clk 0:02:47.5]} 6. f4 {[%clk 0:02:56.1]} 6... Bg6 {[%clk 0:02:47.3]} 7.
Ngf3 {[%clk 0:02:54.2]} 7... Nf5 {[%clk 0:02:47.1]} 8. Bf2 {[%clk 0:02:54.8]}
8... Nd7 {[%clk 0:02:42.7]} 9. Be2 {[%clk 0:02:43.6]} 9... h5 {[%clk 0:02:38.5]}
10. O-O {[%clk 0:02:42.2]} 10... Be7 {[%clk 0:02:19.4]} 11. c4 {[%clk
0:02:31.3]} 11... c5 {[%clk 0:02:18.3]} 12. cxd5 {[%clk 0:02:29.6]} 12... exd5
{[%clk 0:02:16.1]} 13. Qb3 {[%clk 0:02:18]} 13... c4 {[%clk 0:01:53.7]} 14. Qxb7
{[%clk 0:02:17.5]} 14... Rb8 {[%clk 0:01:53]} 15. Qxd5 {[%clk 0:02:16.7]} 15...
Rxb2 {[%clk 0:01:44.1]} 16. Bxc4 {[%clk 0:02:11]} 16... O-O {[%clk 0:01:37.7]}
17. Bb3 {[%clk 0:01:59.8]} 17... h4 {[%clk 0:01:10.5]} 18. Rae1 {[%clk
0:01:22.4]} 18... Nb6 {[%clk 0:00:57.4]} 19. Qc6 {[%clk 0:01:08.6]} 19... Qc8
{[%clk 0:00:38.2]} 20. Qxc8 {[%clk 0:00:59.5]} 20... Rxc8 {[%clk 0:00:39.1]} 21.
Rc1 {[%clk 0:00:49]} 21... Rxc1 {[%clk 0:00:33.9]} 22. Rxc1 {[%clk 0:00:49.2]}
22... h3 {[%clk 0:00:34.8]} 23. g4 {[%clk 0:00:48.5]} 23... Nh6 {[%clk
0:00:33.8]} 24. f5 {[%clk 0:00:46.4]} 24... Bh7 {[%clk 0:00:33.3]} 25. Rc7
{[%clk 0:00:23.5]} 25... Bf8 {[%clk 0:00:29.5]} 26. e6 {[%clk 0:00:19.6]} 26...
Nxg4 {[%clk 0:00:21.5]} 27. exf7+ {[%clk 0:00:19.1]} 27... Kh8 {[%clk
0:00:21.4]} 28. Rxa7 {[%clk 0:00:18.1]} 28... Bxf5 {[%clk 0:00:19.3]} 29. Rb7
{[%clk 0:00:15.1]} 29... Nd7 {[%clk 0:00:18.4]} 30. Ra7 {[%clk 0:00:12.7]} 30...
g6 {[%clk 0:00:18.4]} 31. Ra8 {[%clk 0:00:11.6]} 31... Kg7 {[%clk 0:00:18.6]}
32. Bg3 {[%clk 0:00:10.5]} 32... Ne3 {[%clk 0:00:09.5]} 33. Rd8 {[%clk 0:00:07]}
33... Nf6 {[%clk 0:00:08.2]} 34. Be5 {[%clk 0:00:06.8]} 34... Ng4 {[%clk
0:00:07.5]} 35. Rd6 {[%clk 0:00:06.5]} 35... Nxe5 {[%clk 0:00:06.8]} 36. dxe5
{[%clk 0:00:06.1]} 36... Ne4 {[%clk 0:00:07.6]} 37. Nxe4 {[%clk 0:00:04.5]}
37... Bxe4 {[%clk 0:00:08.5]} 38. Ng5 {[%clk 0:00:03.1]} 38... Rg2+ {[%clk
0:00:08.9]} 39. Kf1 {[%clk 0:00:02.9]} 39... Rxg5 {[%clk 0:00:09.1]} 40. Rd8
{[%clk 0:00:01.5]} 40... Rf5+ {[%clk 0:00:08.6]} 0-1

[Event "Late-Titled-Tuesday-Blitz-October-10-2023"]
[Site "Chess.com"]
[Date "2023.10.10"]
[Round "5"]
[White "GlavkonVVS"]
[Black "Dannyyi"]
[Result "1-0"]
[WhiteElo "2527"]
[BlackElo "2251"]
[TimeControl "180+1"]
[EndTime "14:52:32 PDT"]
[Termination "GlavkonVVS won on time"]

1. c4 {[%clk 0:03:00.9]} 1... e5 {[%clk 0:02:55.1]} 2. Nc3 {[%clk 0:03:01.1]}
2... Bb4 {[%clk 0:02:53.4]} 3. g3 {[%clk 0:03:01]} 3... Nf6 {[%clk 0:02:52]} 4.
Bg2 {[%clk 0:03:01]} 4... Bxc3 {[%clk 0:02:51.5]} 5. bxc3 {[%clk 0:03:01]} 5...
d6 {[%clk 0:02:51.1]} 6. Nf3 {[%clk 0:03:00.9]} 6... O-O {[%clk 0:02:50.5]} 7.
d3 {[%clk 0:03:01.2]} 7... Nbd7 {[%clk 0:02:49.7]} 8. Rb1 {[%clk 0:03:01.5]}
8... Nc5 {[%clk 0:02:43.6]} 9. O-O {[%clk 0:03:00.2]} 9... h6 {[%clk 0:02:38.6]}
10. e4 {[%clk 0:02:59.8]} 10... b6 {[%clk 0:02:36.8]} 11. h3 {[%clk 0:02:57.2]}
11... Be6 {[%clk 0:02:21.2]} 12. Nh4 {[%clk 0:02:56.2]} 12... Qe8 {[%clk
0:02:16.5]} 13. Nf5 {[%clk 0:02:43.7]} 13... Qa4 {[%clk 0:02:08]} 14. Qd2 {[%clk
0:02:43.4]} 14... Bxf5 {[%clk 0:01:53.3]} 15. exf5 {[%clk 0:02:43.1]} 15... Rae8
{[%clk 0:01:52.8]} 16. Rb4 {[%clk 0:02:01.4]} 16... Qa5 {[%clk 0:01:47.3]} 17.
d4 {[%clk 0:01:59.8]} 17... Nce4 {[%clk 0:01:39.6]} 18. Qb2 {[%clk 0:01:57.3]}
18... exd4 {[%clk 0:01:32.2]} 19. cxd4 {[%clk 0:01:54.6]} 19... Qxf5 {[%clk
0:01:31.4]} 20. Rb5 {[%clk 0:01:53.3]} 20... Qg6 {[%clk 0:01:28.3]} 21. g4
{[%clk 0:01:49.3]} 21... Ng5 {[%clk 0:01:15]} 22. Rf5 {[%clk 0:01:44.5]} 22...
Ne6 {[%clk 0:01:02.8]} 23. Be3 {[%clk 0:01:36.3]} 23... Rd8 {[%clk 0:00:50.3]}
24. Qb5 {[%clk 0:01:30.4]} 24... Rfe8 {[%clk 0:00:41.3]} 25. Bc6 {[%clk
0:01:27.1]} 25... Re7 {[%clk 0:00:38.5]} 26. Kh2 {[%clk 0:01:16.9]} 26... Nh7
{[%clk 0:00:24.1]} 27. a4 {[%clk 0:01:12.5]} 27... Nhg5 {[%clk 0:00:23.1]} 28.
Bg2 {[%clk 0:01:07.7]} 28... a5 {[%clk 0:00:21]} 29. c5 {[%clk 0:01:05.1]} 29...
dxc5 {[%clk 0:00:20]} 30. dxc5 {[%clk 0:01:05.4]} 30... bxc5 {[%clk 0:00:16.3]}
31. Bxc5 {[%clk 0:01:04.9]} 31... Nxc5 {[%clk 0:00:16.2]} 32. Qxc5 {[%clk
0:01:04.7]} 32... Red7 {[%clk 0:00:16]} 33. Qxa5 {[%clk 0:01:02.7]} 33... Ne6
{[%clk 0:00:16.2]} 34. Qe5 {[%clk 0:00:59.8]} 34... Rd2 {[%clk 0:00:15.1]} 35.
a5 {[%clk 0:00:57.4]} 35... Ra2 {[%clk 0:00:14.9]} 36. Bb7 {[%clk 0:00:51.8]}
36... Rdd2 {[%clk 0:00:11.8]} 37. a6 {[%clk 0:00:50.8]} 37... Nd4 {[%clk
0:00:10.9]} 38. Rf4 {[%clk 0:00:47.2]} 38... Ne6 {[%clk 0:00:07.4]} 39. Rf5
{[%clk 0:00:44.2]} 39... Nd4 {[%clk 0:00:07.6]} 40. Qe8+ {[%clk 0:00:44.2]}
40... Kh7 {[%clk 0:00:07.6]} 41. Rxf7 {[%clk 0:00:42.6]} 41... Qd6+ {[%clk
0:00:07.4]} 42. Kg2 {[%clk 0:00:43]} 42... Ne2 {[%clk 0:00:05]} 43. Qe4+ {[%clk
0:00:42.2]} 43... Qg6 {[%clk 0:00:03.3]} 44. Qxg6+ {[%clk 0:00:40.4]} 44... Kxg6
{[%clk 0:00:04.2]} 45. Rf3 {[%clk 0:00:37.6]} 45... Nd4 {[%clk 0:00:04.3]} 46.
Re3 {[%clk 0:00:36.4]} 46... c5 {[%clk 0:00:04.5]} 47. Rc3 {[%clk 0:00:28]} 1-0

[Event "Late-Titled-Tuesday-Blitz-October-10-2023"]
[Site "Chess.com"]
[Date "2023.10.10"]
[Round "5"]
[White "GM_dmitrij"]
[Black "josiwales"]
[Result "0-1"]
[WhiteElo "3000"]
[BlackElo "2757"]
[TimeControl "180+1"]
[EndTime "14:52:33 PDT"]
[Termination "josiwales won by resignation"]

1. e4 {[%clk 0:02:35.1]} 1... c5 {[%clk 0:02:58.9]} 2. c3 {[%clk 0:02:33.2]}
2... Nf6 {[%clk 0:02:57.7]} 3. e5 {[%clk 0:02:33.6]} 3... Nd5 {[%clk 0:02:58.2]}
4. Bc4 {[%clk 0:02:34.5]} 4... Nb6 {[%clk 0:02:55.4]} 5. Bb3 {[%clk 0:02:34.5]}
5... d5 {[%clk 0:02:56]} 6. d4 {[%clk 0:02:33.4]} 6... cxd4 {[%clk 0:02:48.4]}
7. cxd4 {[%clk 0:02:34.3]} 7... Bf5 {[%clk 0:02:48.8]} 8. Nc3 {[%clk 0:02:23.6]}
8... e6 {[%clk 0:02:49.1]} 9. Nge2 {[%clk 0:02:19.2]} 9... h5 {[%clk 0:02:45.9]}
10. O-O {[%clk 0:02:15.3]} 10... h4 {[%clk 0:02:45.6]} 11. Bc2 {[%clk
0:02:14.2]} 11... h3 {[%clk 0:02:36.7]} 12. g3 {[%clk 0:02:12.4]} 12... Bxc2
{[%clk 0:02:06.7]} 13. Qxc2 {[%clk 0:02:13.3]} 13... Nc6 {[%clk 0:02:07.6]} 14.
Be3 {[%clk 0:02:10.3]} 14... g5 {[%clk 0:02:03.7]} 15. Rac1 {[%clk 0:02:06.2]}
15... g4 {[%clk 0:02:02.4]} 16. f3 {[%clk 0:01:55.7]} 16... Nc4 {[%clk
0:01:59.1]} 17. Bf4 {[%clk 0:01:55.9]} 17... Qb6 {[%clk 0:01:53.1]} 18. Na4
{[%clk 0:01:51.1]} 18... Qa6 {[%clk 0:01:50.3]} 19. b3 {[%clk 0:01:48.2]} 19...
Na3 {[%clk 0:01:43.1]} 20. Qb2 {[%clk 0:01:41.9]} 20... Nb5 {[%clk 0:01:24.7]}
21. fxg4 {[%clk 0:01:36.9]} 21... Ba3 {[%clk 0:01:23.9]} 22. Qd2 {[%clk
0:01:32.6]} 22... Bxc1 {[%clk 0:01:17.1]} 23. Rxc1 {[%clk 0:01:33.5]} 23...
O-O-O {[%clk 0:01:10.5]} 24. Nc5 {[%clk 0:01:31.3]} 24... Qa3 {[%clk 0:01:07.8]}
25. Bg5 {[%clk 0:00:51.3]} 25... Rde8 {[%clk 0:01:01.9]} 26. Bf6 {[%clk
0:00:51.3]} 26... Rhg8 {[%clk 0:01:01.4]} 27. g5 {[%clk 0:00:49.3]} 27... Kb8
{[%clk 0:00:53.3]} 28. Rc2 {[%clk 0:00:29.6]} 28... Rc8 {[%clk 0:00:51.3]} 29.
Nd7+ {[%clk 0:00:18.6]} 29... Ka8 {[%clk 0:00:50.9]} 30. Kf1 {[%clk 0:00:18.3]}
30... Ncxd4 {[%clk 0:00:39.8]} 31. Nxd4 {[%clk 0:00:14.4]} 31... Nxd4 {[%clk
0:00:39]} 32. Rxc8+ {[%clk 0:00:10.8]} 32... Rxc8 {[%clk 0:00:39.9]} 33. Qxd4
{[%clk 0:00:09.8]} 33... Qc1+ {[%clk 0:00:39.9]} 34. Ke2 {[%clk 0:00:08.6]}
34... Rc2+ {[%clk 0:00:39.4]} 35. Kf3 {[%clk 0:00:09.1]} 35... Rd2 {[%clk
0:00:21.8]} 36. Qc5 {[%clk 0:00:08.5]} 36... Qd1+ {[%clk 0:00:19]} 37. Kf4
{[%clk 0:00:07.3]} 37... Rd4+ {[%clk 0:00:17.8]} 38. Qxd4 {[%clk 0:00:03.1]}
38... Qxd4+ {[%clk 0:00:17.3]} 39. Kf3 {[%clk 0:00:04]} 39... Qe4+ {[%clk
0:00:17.8]} 40. Kf2 {[%clk 0:00:03.7]} 40... Qg2+ {[%clk 0:00:18.4]} 41. Ke3
{[%clk 0:00:04.1]} 41... Qxh2 {[%clk 0:00:18.4]} 0-1

[Event "Late-Titled-Tuesday-Blitz-October-10-2023"]
[Site "Chess.com"]
[Date "2023.10.10"]
[Round "5"]
[White "elcala"]
[Black "josiur"]
[Result "1/2-1/2"]
[WhiteElo "1760"]
[BlackElo "2477"]
[TimeControl "180+1"]
[EndTime "14:52:34 PDT"]
[Termination "Game drawn by repetition"]

1. d4 {[%clk 0:02:58.9]} 1... d5 {[%clk 0:02:59.3]} 2. Nf3 {[%clk 0:02:59.3]}
2... e6 {[%clk 0:02:58.6]} 3. Bf4 {[%clk 0:02:59.6]} 3... Bd6 {[%clk 0:02:58]}
4. Bg3 {[%clk 0:02:57.1]} 4... Bxg3 {[%clk 0:02:57.4]} 5. hxg3 {[%clk 0:02:58]}
5... Nf6 {[%clk 0:02:56.7]} 6. e3 {[%clk 0:02:58.4]} 6... b6 {[%clk 0:02:56.4]}
7. Nbd2 {[%clk 0:02:58.7]} 7... Ba6 {[%clk 0:02:56.1]} 8. Bxa6 {[%clk 0:02:55]}
8... Nxa6 {[%clk 0:02:57]} 9. c3 {[%clk 0:02:55.2]} 9... O-O {[%clk 0:02:54.8]}
10. Ne5 {[%clk 0:02:53.3]} 10... c5 {[%clk 0:02:53.6]} 11. g4 {[%clk 0:02:53]}
11... g6 {[%clk 0:02:50.8]} 12. Qf3 {[%clk 0:02:48.6]} 12... Nd7 {[%clk
0:02:50.3]} 13. Qh3 {[%clk 0:02:46.2]} 13... h5 {[%clk 0:02:33.5]} 14. gxh5
{[%clk 0:02:40.1]} 14... g5 {[%clk 0:02:33.6]} 15. h6 {[%clk 0:02:38.3]} 15...
Nxe5 {[%clk 0:02:32.6]} 16. h7+ {[%clk 0:02:35.7]} 16... Kh8 {[%clk 0:02:31.5]}
17. dxe5 {[%clk 0:02:36]} 17... Nc7 {[%clk 0:02:24.9]} 18. Nf3 {[%clk
0:02:34.4]} 18... f5 {[%clk 0:02:21.1]} 19. Qh6 {[%clk 0:02:26.4]} 19... g4
{[%clk 0:02:12.3]} 20. Ng5 {[%clk 0:02:25]} 20... Qe7 {[%clk 0:02:12.3]} 21. Qg6
{[%clk 0:01:19.3]} 21... Qg7 {[%clk 0:02:09.1]} 22. Rh6 {[%clk 0:00:58.4]} 22...
Rae8 {[%clk 0:01:46.8]} 23. O-O-O {[%clk 0:00:54]} 23... Re7 {[%clk 0:01:43.9]}
24. Rdh1 {[%clk 0:00:54.1]} 24... Qxe5 {[%clk 0:01:24.6]} 25. Qh5 {[%clk
0:00:45.5]} 25... d4 {[%clk 0:01:15.3]} 26. exd4 {[%clk 0:00:25.2]} 26... cxd4
{[%clk 0:01:14.7]} 27. cxd4 {[%clk 0:00:19.8]} 27... Qxd4 {[%clk 0:01:06.1]} 28.
Rg6 {[%clk 0:00:19.9]} 28... Rg7 {[%clk 0:01:01.9]} 29. Qh6 {[%clk 0:00:16.2]}
29... Ne8 {[%clk 0:00:49]} 30. Nxe6 {[%clk 0:00:15]} 30... Qc4+ {[%clk
0:00:42.2]} 31. Kb1 {[%clk 0:00:13.4]} 31... Qd3+ {[%clk 0:00:34.3]} 32. Ka1
{[%clk 0:00:12.3]} 32... Rff7 {[%clk 0:00:28.5]} 33. Nxg7 {[%clk 0:00:11.2]}
33... Nxg7 {[%clk 0:00:28.7]} 34. Rc6 {[%clk 0:00:09.3]} 34... Rd7 {[%clk
0:00:26.6]} 35. Rc8+ {[%clk 0:00:09.1]} 35... Rd8 {[%clk 0:00:26.8]} 36. Rxd8+
{[%clk 0:00:09.4]} 36... Qxd8 {[%clk 0:00:27.6]} 37. Qg6 {[%clk 0:00:09.7]}
37... b5 {[%clk 0:00:20.5]} 38. Re1 {[%clk 0:00:09.8]} 38... b4 {[%clk
0:00:19.1]} 39. b3 {[%clk 0:00:08.2]} 39... Qd4+ {[%clk 0:00:17.6]} 40. Kb1
{[%clk 0:00:08.8]} 40... Qd3+ {[%clk 0:00:18]} 41. Kc1 {[%clk 0:00:08.6]} 41...
Qc3+ {[%clk 0:00:17.9]} 42. Kd1 {[%clk 0:00:08.7]} 42... Qd3+ {[%clk 0:00:15.8]}
43. Kc1 {[%clk 0:00:08.9]} 43... Qc3+ {[%clk 0:00:16.4]} 44. Kd1 {[%clk
0:00:09.4]} 44... Qd3+ {[%clk 0:00:16.9]} 45. Kc1 {[%clk 0:00:09.7]} 1/2-1/2

[Event "Late-Titled-Tuesday-Blitz-October-10-2023"]
[Site "Chess.com"]
[Date "2023.10.10"]
[Round "5"]
[White "Semetey"]
[Black "Kiborg95"]
[Result "1-0"]
[WhiteElo "2557"]
[BlackElo "2801"]
[TimeControl "180+1"]
[EndTime "14:52:37 PDT"]
[Termination "Semetey won by resignation"]

1. d4 {[%clk 0:02:59.1]} 1... Nf6 {[%clk 0:02:59.6]} 2. c4 {[%clk 0:02:59.1]}
2... d6 {[%clk 0:02:54.8]} 3. Nf3 {[%clk 0:02:58.4]} 3... Nbd7 {[%clk
0:02:50.5]} 4. Bf4 {[%clk 0:02:53]} 4... Nh5 {[%clk 0:02:48.6]} 5. Bd2 {[%clk
0:02:45.1]} 5... e5 {[%clk 0:02:48.3]} 6. Nc3 {[%clk 0:02:44.3]} 6... g6 {[%clk
0:02:44.3]} 7. dxe5 {[%clk 0:02:37.4]} 7... dxe5 {[%clk 0:02:44.3]} 8. e3 {[%clk
0:02:33.9]} 8... c6 {[%clk 0:02:41.2]} 9. Be2 {[%clk 0:02:33.8]} 9... f5 {[%clk
0:02:29.9]} 10. e4 {[%clk 0:02:21.4]} 10... f4 {[%clk 0:02:26.3]} 11. g4 {[%clk
0:02:21]} 11... Nhf6 {[%clk 0:02:23.5]} 12. g5 {[%clk 0:02:18.6]} 12... Nh5
{[%clk 0:02:20.3]} 13. h4 {[%clk 0:02:07.1]} 13... Qc7 {[%clk 0:02:19.4]} 14.
Qc2 {[%clk 0:02:04]} 14... Nc5 {[%clk 0:02:19.1]} 15. Nb1 {[%clk 0:01:38.4]}
15... Bg7 {[%clk 0:02:08.1]} 16. Bc3 {[%clk 0:01:36.1]} 16... a5 {[%clk
0:01:49.8]} 17. Nbd2 {[%clk 0:01:30.8]} 17... O-O {[%clk 0:01:48.8]} 18. b3
{[%clk 0:01:25.4]} 18... Ne6 {[%clk 0:01:43.8]} 19. Bb2 {[%clk 0:01:25]} 19...
a4 {[%clk 0:01:33.7]} 20. O-O {[%clk 0:01:14.1]} 20... a3 {[%clk 0:01:28.2]} 21.
Bc3 {[%clk 0:01:13.3]} 21... Nd4 {[%clk 0:01:28.6]} 22. Bxd4 {[%clk 0:01:11.1]}
22... exd4 {[%clk 0:01:29.5]} 23. Rad1 {[%clk 0:01:06.6]} 23... c5 {[%clk
0:01:28.3]} 24. Nh2 {[%clk 0:01:04.8]} 24... f3 {[%clk 0:01:25.5]} 25. Bxf3
{[%clk 0:00:59]} 25... Be5 {[%clk 0:01:16]} 26. Ng4 {[%clk 0:00:56.3]} 26...
Rxf3 {[%clk 0:01:16]} 27. Nh6+ {[%clk 0:00:55.5]} 27... Kg7 {[%clk 0:01:13.7]}
28. Nxf3 {[%clk 0:00:56.4]} 28... Bh3 {[%clk 0:01:09.6]} 29. Rfe1 {[%clk
0:00:56.1]} 29... Rf8 {[%clk 0:01:05.4]} 30. Rd3 {[%clk 0:00:35.5]} 30... Be6
{[%clk 0:01:02.4]} 31. Nxe5 {[%clk 0:00:28.2]} 31... Qxe5 {[%clk 0:01:02.1]} 32.
Qd1 {[%clk 0:00:18.2]} 32... Rf4 {[%clk 0:01:01.9]} 33. Rf3 {[%clk 0:00:12.8]}
33... Rxh4 {[%clk 0:00:58.7]} 34. Nf5+ {[%clk 0:00:04.4]} 34... Bxf5 {[%clk
0:00:51.6]} 35. exf5 {[%clk 0:00:05.3]} 35... Qh2+ {[%clk 0:00:52]} 36. Kf1
{[%clk 0:00:05.9]} 36... Qh1+ {[%clk 0:00:52.7]} 37. Ke2 {[%clk 0:00:05.4]}
37... Re4+ {[%clk 0:00:51.1]} 38. Kd2 {[%clk 0:00:05.7]} 38... Qh4 {[%clk
0:00:33.2]} 39. Rxe4 {[%clk 0:00:05.6]} 39... Qxe4 {[%clk 0:00:33.6]} 40. f6+
{[%clk 0:00:05.1]} 40... Kf7 {[%clk 0:00:33.8]} 41. Qe2 {[%clk 0:00:05.7]} 1-0

[Event "Late-Titled-Tuesday-Blitz-October-10-2023"]
[Site "Chess.com"]
[Date "2023.10.10"]
[Round "5"]
[White "Rozhkov_V"]
[Black "talaicito"]
[Result "0-1"]
[WhiteElo "2396"]
[BlackElo "2239"]
[TimeControl "180+1"]
[EndTime "14:52:37 PDT"]
[Termination "talaicito won by resignation"]

1. e4 {[%clk 0:03:00.9]} 1... c5 {[%clk 0:02:59.4]} 2. Nf3 {[%clk 0:03:00.4]}
2... d6 {[%clk 0:02:59.7]} 3. d4 {[%clk 0:03:00.5]} 3... cxd4 {[%clk 0:03:00.6]}
4. Nxd4 {[%clk 0:03:01.3]} 4... Nf6 {[%clk 0:03:01.2]} 5. Nc3 {[%clk 0:03:01.1]}
5... g6 {[%clk 0:03:02.1]} 6. Be3 {[%clk 0:02:56.6]} 6... Bg7 {[%clk 0:03:01.7]}
7. Bc4 {[%clk 0:02:52.9]} 7... O-O {[%clk 0:03:01.5]} 8. f3 {[%clk 0:02:47.2]}
8... Nc6 {[%clk 0:03:01.2]} 9. Bb3 {[%clk 0:02:47.4]} 9... Bd7 {[%clk
0:02:59.8]} 10. Qd2 {[%clk 0:02:36.9]} 10... Rc8 {[%clk 0:03:00]} 11. h4 {[%clk
0:02:35.5]} 11... h5 {[%clk 0:02:59.3]} 12. O-O-O {[%clk 0:02:10.7]} 12... Nxd4
{[%clk 0:02:59]} 13. Bxd4 {[%clk 0:02:09.2]} 13... b5 {[%clk 0:02:59.9]} 14.
Bxf6 {[%clk 0:01:18.8]} 14... Bxf6 {[%clk 0:02:53.2]} 15. Qh6 {[%clk 0:01:18]}
15... b4 {[%clk 0:02:34.2]} 16. Qxg6+ {[%clk 0:01:07.4]} 16... Bg7 {[%clk
0:02:32.5]} 17. Ne2 {[%clk 0:01:02.2]} 17... Ba4 {[%clk 0:02:26.3]} 18. Qg5
{[%clk 0:00:43.6]} 18... Bxb3 {[%clk 0:02:16.8]} 19. axb3 {[%clk 0:00:44.5]}
19... Qb6 {[%clk 0:01:57.3]} 20. Rd2 {[%clk 0:00:28.7]} 20... Rc5 {[%clk
0:01:47.9]} 21. Qg3 {[%clk 0:00:19.4]} 21... Qa6 {[%clk 0:01:37.3]} 22. Kd1
{[%clk 0:00:10.7]} 22... Kh7 {[%clk 0:01:27.9]} 23. Re1 {[%clk 0:00:04.5]} 23...
Bh6 {[%clk 0:01:22.7]} 24. f4 {[%clk 0:00:03.7]} 24... Rg8 {[%clk 0:01:21.5]}
25. Qd3 {[%clk 0:00:03.7]} 25... Qa1+ {[%clk 0:01:15]} 26. Nc1 {[%clk
0:00:03.9]} 26... Kh8 {[%clk 0:00:58]} 27. g3 {[%clk 0:00:03.5]} 27... a5 {[%clk
0:00:36.8]} 28. e5 {[%clk 0:00:03.1]} 28... dxe5 {[%clk 0:00:31.4]} 29. Qf5
{[%clk 0:00:03.6]} 29... Rc6 {[%clk 0:00:19.7]} 30. Qxh5 {[%clk 0:00:01.9]}
30... Rxg3 {[%clk 0:00:16.3]} 31. fxe5 {[%clk 0:00:01.7]} 31... Kg7 {[%clk
0:00:12.8]} 32. e6 {[%clk 0:00:02.2]} 32... Bxd2 {[%clk 0:00:10.3]} 33. Kxd2
{[%clk 0:00:03.1]} 33... Rd6+ {[%clk 0:00:09.4]} 34. Nd3 {[%clk 0:00:02.7]}
34... Rgxd3+ {[%clk 0:00:07.5]} 35. cxd3 {[%clk 0:00:02.5]} 35... Qxb2+ {[%clk
0:00:07.7]} 36. Ke3 {[%clk 0:00:03]} 36... Rxe6+ {[%clk 0:00:07.7]} 37. Kf4
{[%clk 0:00:03.7]} 37... Qf6+ {[%clk 0:00:06.3]} 38. Kg3 {[%clk 0:00:02.9]}
38... Rxe1 {[%clk 0:00:07.1]} 39. Qg4+ {[%clk 0:00:03.1]} 39... Qg6 {[%clk
0:00:06.8]} 0-1

[Event "Late-Titled-Tuesday-Blitz-October-10-2023"]
[Site "Chess.com"]
[Date "2023.10.10"]
[Round "5"]
[White "Defenstrator"]
[Black "annacramling"]
[Result "1-0"]
[WhiteElo "2407"]
[BlackElo "2208"]
[TimeControl "180+1"]
[EndTime "14:52:38 PDT"]
[Termination "Defenstrator won by checkmate"]

1. g4 {[%clk 0:01:51.2]} 1... d5 {[%clk 0:02:54.2]} 2. Bg2 {[%clk 0:01:50.9]}
2... c6 {[%clk 0:02:54.4]} 3. h3 {[%clk 0:01:49.4]} 3... h5 {[%clk 0:02:53]} 4.
gxh5 {[%clk 0:01:48.2]} 4... Rxh5 {[%clk 0:02:50.6]} 5. e4 {[%clk 0:01:49]} 5...
Nf6 {[%clk 0:02:41.7]} 6. d4 {[%clk 0:01:42.9]} 6... dxe4 {[%clk 0:02:40.5]} 7.
Bxe4 {[%clk 0:01:40.9]} 7... g6 {[%clk 0:01:28.2]} 8. Bf3 {[%clk 0:01:34.8]}
8... Rh8 {[%clk 0:01:27.9]} 9. Bg5 {[%clk 0:01:30.7]} 9... Bg7 {[%clk 0:01:28]}
10. Nc3 {[%clk 0:01:25.8]} 10... Bf5 {[%clk 0:01:25.7]} 11. Qd2 {[%clk
0:01:15.3]} 11... Qa5 {[%clk 0:00:55.2]} 12. O-O-O {[%clk 0:00:57.6]} 12... Nbd7
{[%clk 0:00:54.6]} 13. Kb1 {[%clk 0:00:52.3]} 13... O-O-O {[%clk 0:00:51.7]} 14.
Nd5 {[%clk 0:00:47.4]} 14... Bxc2+ {[%clk 0:00:39.3]} 15. Qxc2 {[%clk
0:00:38.7]} 15... Nxd5 {[%clk 0:00:39.1]} 16. Ne2 {[%clk 0:00:27]} 16... N7b6
{[%clk 0:00:27.9]} 17. Qb3 {[%clk 0:00:21.6]} 17... Bh6 {[%clk 0:00:10.7]} 18.
Bxh6 {[%clk 0:00:15.9]} 18... Rxh6 {[%clk 0:00:11.6]} 19. Ng3 {[%clk 0:00:12.3]}
19... Rh4 {[%clk 0:00:11]} 20. Ne4 {[%clk 0:00:12.1]} 20... f5 {[%clk
0:00:10.1]} 21. Nc5 {[%clk 0:00:12.1]} 21... Kb8 {[%clk 0:00:08.7]} 22. Rhe1
{[%clk 0:00:10.2]} 22... Nb4 {[%clk 0:00:04.9]} 23. Rxe7 {[%clk 0:00:05.9]}
23... Rhxd4 {[%clk 0:00:04.7]} 24. Rc1 {[%clk 0:00:04.1]} 24... Rd2 {[%clk
0:00:03.4]} 25. Rxb7+ {[%clk 0:00:04.4]} 25... Ka8 {[%clk 0:00:03.3]} 26. Rxb6
{[%clk 0:00:03.2]} 26... axb6 {[%clk 0:00:03.4]} 27. Na4 {[%clk 0:00:03.1]}
27... b5 {[%clk 0:00:03.3]} 28. Nc5 {[%clk 0:00:03.1]} 28... R2d5 {[%clk
0:00:01.5]} 29. a3 {[%clk 0:00:03.2]} 29... Rxc5 {[%clk 0:00:01.5]} 30. Rxc5
{[%clk 0:00:04]} 30... Nd3 {[%clk 0:00:01.9]} 31. Bxc6+ {[%clk 0:00:03.9]} 31...
Kb8 {[%clk 0:00:01.8]} 32. Rxb5+ {[%clk 0:00:03.7]} 32... Kc7 {[%clk 0:00:02.5]}
33. Rxa5 {[%clk 0:00:03.5]} 33... Kxc6 {[%clk 0:00:01.4]} 34. Qc4+ {[%clk
0:00:03.4]} 34... Kb7 {[%clk 0:00:01.3]} 35. Rb5+ {[%clk 0:00:03.5]} 35... Ka6
{[%clk 0:00:01.1]} 36. Qa4# {[%clk 0:00:04]} 1-0